[Event "Titled Tuesday Blitz March 08 Early 2022"]
[White "Prohorov, Olexandr"]
[Black "Sahil, Tickoo"]
[WhiteFideId "14105578"]
[BlackFideId "5019710"]
[WhiteElo "1993"]
[BlackElo "2099"]
[Result "1/2-1/2"]
[Round "07"]
[TimeControl "180+1"]
[Date "2022.03.09"]
[WhiteClock "0:00:36"]
[BlackClock "0:00:07"]

1. e4 {[%clk 0:02:22]}  c5 {[%clk 0:02:59]} 2. c3 {[%clk 0:02:22]}  d5 {[%clk 0:02:58]} 3. exd5 {[%clk 0:02:21]}  Nf6 {[%clk 0:02:59]} 4. d4 {[%clk 0:02:22]}  Nxd5 {[%clk 0:02:59]} 5. Nf3 {[%clk 0:02:21]}  e6 {[%clk 0:02:57]} 6. c4 {[%clk 0:02:17]}  Nb4 {[%clk 0:02:56]} 7. a3 {[%clk 0:02:15]}  N4c6 {[%clk 0:02:54]} 8. d5 {[%clk 0:02:15]}  exd5 {[%clk 0:02:54]} 9. cxd5 {[%clk 0:02:16]}  Ne7 {[%clk 0:02:35]} 10. Nc3 {[%clk 0:02:16]}  Ng6 {[%clk 0:02:31]} 11. Bc4 {[%clk 0:02:11]}  Bd6 {[%clk 0:02:29]} 12. O-O {[%clk 0:02:11]}  O-O {[%clk 0:02:28]} 13. h3 {[%clk 0:02:11]}  a6 {[%clk 0:02:28]} 14. a4 {[%clk 0:02:11]}  Nd7 {[%clk 0:02:26]} 15. Re1 {[%clk 0:02:07]}  Nde5 {[%clk 0:02:15]} 16. Ba2 {[%clk 0:02:06]}  Bf5 {[%clk 0:02:03]} 17. Ne4 {[%clk 0:01:56]}  Bxe4 {[%clk 0:01:55]} 18. Rxe4 {[%clk 0:01:56]}  Re8 {[%clk 0:01:53]} 19. Bg5 {[%clk 0:01:51]}  Qd7 {[%clk 0:01:48]} 20. Nxe5 {[%clk 0:01:44]}  Bxe5 {[%clk 0:01:37]} 21. Qd2 {[%clk 0:01:43]}  Bh2+ {[%clk 0:01:30]} 22. Kxh2 {[%clk 0:01:41]}  Rxe4 {[%clk 0:01:31]} 23. Rd1 {[%clk 0:01:41]}  Qd6+ {[%clk 0:01:25]} 24. g3 {[%clk 0:01:40]}  Rae8 {[%clk 0:01:22]} 25. Be3 {[%clk 0:01:40]}  Ne5 {[%clk 0:01:18]} 26. Kg2 {[%clk 0:01:39]}  Nc4 {[%clk 0:01:08]} 27. Bxc4 {[%clk 0:01:37]}  Rxc4 {[%clk 0:01:08]} 28. Qd3 {[%clk 0:01:37]}  Rb4 {[%clk 0:01:00]} 29. Rc1 {[%clk 0:01:36]}  b6 {[%clk 0:00:40]} 30. a5 {[%clk 0:01:36]}  Rxb2 {[%clk 0:00:27]} 31. axb6 {[%clk 0:01:35]}  Qxb6 {[%clk 0:00:21]} 32. Bxc5 {[%clk 0:01:33]}  Qb5 {[%clk 0:00:20]} 33. Qf3 {[%clk 0:01:27]}  Qe2 {[%clk 0:00:16]} 34. Be3 {[%clk 0:00:58]}  Qxf3+ {[%clk 0:00:16]} 35. Kxf3 {[%clk 0:00:59]}  Rd8 {[%clk 0:00:15]} 36. d6 {[%clk 0:00:51]}  h6 {[%clk 0:00:14]} 37. Rc6 {[%clk 0:00:51]}  a5 {[%clk 0:00:13]} 38. Bb6 {[%clk 0:00:49]}  Rd7 {[%clk 0:00:11]} 39. Bxa5 {[%clk 0:00:49]}  Rb3+ {[%clk 0:00:11]} 40. Kg2 {[%clk 0:00:49]}  Rd3 {[%clk 0:00:11]} 41. Bc7 {[%clk 0:00:48]}  g5 {[%clk 0:00:10]} 42. Rc5 {[%clk 0:00:47]}  Kg7 {[%clk 0:00:09]} 43. Re5 {[%clk 0:00:48]}  Kf6 {[%clk 0:00:07]} 44. Re8 {[%clk 0:00:48]}  Rd5 {[%clk 0:00:06]} 45. Rh8 {[%clk 0:00:44]}  Kg7 {[%clk 0:00:06]} 46. Re8 {[%clk 0:00:41]}  R5xd6 {[%clk 0:00:05]} 47. Bxd6 {[%clk 0:00:40]}  Rxd6 {[%clk 0:00:06]} 48. Re4 {[%clk 0:00:39]}  h5 {[%clk 0:00:06]} 49. Re5 {[%clk 0:00:37]}  f6 {[%clk 0:00:05]} 50. Ra5 {[%clk 0:00:38]}  Kg6 {[%clk 0:00:06]} 51. Ra7 {[%clk 0:00:36]}  Rd2 {[%clk 0:00:06]} 52. g4 {[%clk 0:00:36]}  hxg4 {[%clk 0:00:05]} 53. hxg4 {[%clk 0:00:36]}  Rd4 {[%clk 0:00:06]} 54. Kg3 {[%clk 0:00:36]}  Rf4 {[%clk 0:00:06]} 55. Ra5 {[%clk 0:00:36]}  Rd4 {[%clk 0:00:07]} 56. Ra6 {[%clk 0:00:36]}  Rd3+ {[%clk 0:00:07]} 57. f3 {[%clk 0:00:36]}  Rd1 {[%clk 0:00:07]} 1/2-1/2


[Site "https://www.chess.com"]

[Event "Titled Tuesday Blitz March 08 Early 2022"]
[White "Rustemov, Alexander"]
[Black "Romanchuk, Viktor"]
[WhiteFideId "4119002"]
[BlackFideId "14109271"]
[WhiteElo "2763"]
[BlackElo "2242"]
[Result "1/2-1/2"]
[Round "07"]
[TimeControl "180+1"]
[Date "2022.03.09"]
[WhiteClock "0:00:11"]
[BlackClock "0:00:07"]

1. d4 {[%clk 0:03:00]}  d5 {[%clk 0:02:58]} 2. c4 {[%clk 0:02:58]}  c6 {[%clk 0:02:58]} 3. Nc3 {[%clk 0:02:58]}  Nf6 {[%clk 0:02:58]} 4. e3 {[%clk 0:02:58]}  e6 {[%clk 0:02:58]} 5. Nf3 {[%clk 0:02:57]}  Nbd7 {[%clk 0:02:58]} 6. Qc2 {[%clk 0:02:57]}  Bd6 {[%clk 0:02:58]} 7. Bd2 {[%clk 0:02:56]}  O-O {[%clk 0:02:56]} 8. O-O-O {[%clk 0:02:56]}  b5 {[%clk 0:02:57]} 9. e4 {[%clk 0:02:56]}  b4 {[%clk 0:02:28]} 10. e5 {[%clk 0:02:56]}  bxc3 {[%clk 0:02:26]} 11. Bxc3 {[%clk 0:02:57]}  Be7 {[%clk 0:02:25]} 12. exf6 {[%clk 0:02:56]}  Bxf6 {[%clk 0:02:25]} 13. Bd3 {[%clk 0:02:53]}  h6 {[%clk 0:02:18]} 14. c5 {[%clk 0:02:53]}  Re8 {[%clk 0:02:15]} 15. Rhe1 {[%clk 0:02:50]}  a5 {[%clk 0:02:13]} 16. Qe2 {[%clk 0:02:49]}  a4 {[%clk 0:02:07]} 17. a3 {[%clk 0:02:48]}  Qc7 {[%clk 0:02:07]} 18. g3 {[%clk 0:02:47]}  Qa7 {[%clk 0:02:07]} 19. Bb1 {[%clk 0:02:23]}  Ba6 {[%clk 0:01:47]} 20. Qc2 {[%clk 0:02:21]}  Nf8 {[%clk 0:01:48]} 21. Qxa4 {[%clk 0:02:21]}  Reb8 {[%clk 0:01:44]} 22. Bd3 {[%clk 0:02:16]}  Qb7 {[%clk 0:01:42]} 23. Bxa6 {[%clk 0:02:13]}  Rxa6 {[%clk 0:01:41]} 24. Qc2 {[%clk 0:02:14]}  Nd7 {[%clk 0:01:35]} 25. Re3 {[%clk 0:02:12]}  Qb5 {[%clk 0:01:33]} 26. Ne1 {[%clk 0:02:01]}  e5 {[%clk 0:01:17]} 27. dxe5 {[%clk 0:02:00]}  Be7 {[%clk 0:01:18]} 28. e6 {[%clk 0:01:51]}  fxe6 {[%clk 0:01:13]} 29. Rxe6 {[%clk 0:01:51]}  Bf6 {[%clk 0:01:13]} 30. Bxf6 {[%clk 0:01:44]}  Nxf6 {[%clk 0:01:14]} 31. Nd3 {[%clk 0:01:41]}  Ra4 {[%clk 0:01:07]} 32. Nb4 {[%clk 0:01:35]}  Ne4 {[%clk 0:00:56]} 33. Rxe4 {[%clk 0:01:32]}  dxe4 {[%clk 0:00:54]} 34. Kb1 {[%clk 0:01:04]}  Ra5 {[%clk 0:00:35]} 35. Qxe4 {[%clk 0:00:56]}  Qxc5 {[%clk 0:00:32]} 36. Nxc6 {[%clk 0:00:30]}  Rab5 {[%clk 0:00:16]} 37. Nb4 {[%clk 0:00:23]}  Qxf2 {[%clk 0:00:14]} 38. Qc2 {[%clk 0:00:21]}  Qf7 {[%clk 0:00:11]} 39. Rc1 {[%clk 0:00:20]}  Qe6 {[%clk 0:00:11]} 40. Qc4 {[%clk 0:00:20]}  Qxc4 {[%clk 0:00:11]} 41. Rxc4 {[%clk 0:00:21]}  Rf8 {[%clk 0:00:11]} 42. Nd3 {[%clk 0:00:19]}  Re8 {[%clk 0:00:10]} 43. Rc2 {[%clk 0:00:16]}  Re3 {[%clk 0:00:10]} 44. Rd2 {[%clk 0:00:15]}  Rd5 {[%clk 0:00:08]} 45. Kc2 {[%clk 0:00:16]}  Rd8 {[%clk 0:00:08]} 46. b4 {[%clk 0:00:16]}  Rc8+ {[%clk 0:00:08]} 47. Kb2 {[%clk 0:00:15]}  Rd8 {[%clk 0:00:08]} 48. Kc3 {[%clk 0:00:15]}  Rc8+ {[%clk 0:00:08]} 49. Kd4 {[%clk 0:00:16]}  Rf3 {[%clk 0:00:08]} 50. a4 {[%clk 0:00:15]}  Rd8+ {[%clk 0:00:08]} 51. Ke4 {[%clk 0:00:15]}  Rf1 {[%clk 0:00:08]} 52. a5 {[%clk 0:00:15]}  Ra1 {[%clk 0:00:07]} 53. Ke3 {[%clk 0:00:13]}  Ra3 {[%clk 0:00:07]} 54. Ke2 {[%clk 0:00:13]}  Rd4 {[%clk 0:00:07]} 55. h4 {[%clk 0:00:11]}  h5 {[%clk 0:00:07]} 56. Rd1 {[%clk 0:00:11]}  Kh7 {[%clk 0:00:06]} 57. Rd2 {[%clk 0:00:10]}  Kg8 {[%clk 0:00:06]} 58. Rd1 {[%clk 0:00:10]}  Kh7 {[%clk 0:00:06]} 59. Rd2 {[%clk 0:00:11]}  Kg8 {[%clk 0:00:07]} 1/2-1/2


[Site "https://www.chess.com"]

[Event "Titled Tuesday Blitz March 08 Early 2022"]
[White "Sadhwani, Raunak"]
[Black "Sanal, Vahap"]
[WhiteFideId "35093487"]
[BlackFideId "6300545"]
[WhiteElo "2616"]
[BlackElo "2603"]
[Result "1-0"]
[Round "07"]
[TimeControl "180+1"]
[Date "2022.03.08"]
[WhiteClock "0:00:32"]
[BlackClock "0:00:01"]

1. d4 {[%clk 0:03:00]}  d6 {[%clk 0:02:46]} 2. e4 {[%clk 0:03:00]}  Nf6 {[%clk 0:02:46]} 3. Nc3 {[%clk 0:03:01]}  e5 {[%clk 0:02:43]} 4. Nf3 {[%clk 0:03:01]}  Nbd7 {[%clk 0:02:43]} 5. Bc4 {[%clk 0:03:01]}  Be7 {[%clk 0:02:41]} 6. O-O {[%clk 0:03:01]}  O-O {[%clk 0:02:38]} 7. Re1 {[%clk 0:03:01]}  c6 {[%clk 0:02:39]} 8. a4 {[%clk 0:03:01]}  h6 {[%clk 0:02:39]} 9. Be3 {[%clk 0:03:00]}  Re8 {[%clk 0:02:36]} 10. d5 {[%clk 0:03:00]}  cxd5 {[%clk 0:02:35]} 11. Bxd5 {[%clk 0:03:01]}  Nxd5 {[%clk 0:02:34]} 12. Nxd5 {[%clk 0:03:02]}  Nf6 {[%clk 0:02:32]} 13. Nxf6+ {[%clk 0:02:49]}  Bxf6 {[%clk 0:02:32]} 14. c4 {[%clk 0:02:49]}  Be7 {[%clk 0:02:25]} 15. Qd3 {[%clk 0:02:48]}  Qc7 {[%clk 0:02:24]} 16. b3 {[%clk 0:02:48]}  Rf8 {[%clk 0:02:19]} 17. Nd2 {[%clk 0:02:48]}  Qc6 {[%clk 0:02:18]} 18. f3 {[%clk 0:02:45]}  Be6 {[%clk 0:02:16]} 19. Nb1 {[%clk 0:02:43]}  f5 {[%clk 0:02:09]} 20. Nc3 {[%clk 0:02:44]}  Bg5 {[%clk 0:01:42]} 21. Rad1 {[%clk 0:02:31]}  Bxe3+ {[%clk 0:01:40]} 22. Qxe3 {[%clk 0:02:26]}  f4 {[%clk 0:01:36]} 23. Qf2 {[%clk 0:02:26]}  a6 {[%clk 0:01:31]} 24. Rd3 {[%clk 0:02:22]}  Rad8 {[%clk 0:01:26]} 25. Red1 {[%clk 0:02:22]}  Rd7 {[%clk 0:01:13]} 26. a5 {[%clk 0:02:14]}  Rfd8 {[%clk 0:01:11]} 27. Na4 {[%clk 0:02:05]}  Kh7 {[%clk 0:01:04]} 28. Nb6 {[%clk 0:01:58]}  Rc7 {[%clk 0:01:04]} 29. b4 {[%clk 0:01:52]}  Qe8 {[%clk 0:00:17]} 30. c5 {[%clk 0:01:43]}  Qb5 {[%clk 0:00:17]} 31. Qe1 {[%clk 0:01:22]}  Rc6 {[%clk 0:00:17]} 32. h3 {[%clk 0:01:15]}  Bf7 {[%clk 0:00:17]} 33. Kh2 {[%clk 0:01:13]}  Bg6 {[%clk 0:00:12]} 34. Rd5 {[%clk 0:01:03]}  Bf7 {[%clk 0:00:12]} 35. R5d3 {[%clk 0:00:51]}  Bg8 {[%clk 0:00:13]} 36. Qc3 {[%clk 0:00:36]}  Bf7 {[%clk 0:00:09]} 37. Rxd6 {[%clk 0:00:36]}  Rdxd6 {[%clk 0:00:09]} 38. Rxd6 {[%clk 0:00:37]}  Rxd6 {[%clk 0:00:02]} 39. cxd6 {[%clk 0:00:37]}  Be6 {[%clk 0:00:02]} 40. Qd2 {[%clk 0:00:35]}  Qc6 {[%clk 0:00:01]} 41. d7 {[%clk 0:00:34]}  Bxd7 {[%clk 0:00:01]} 42. Qxd7 {[%clk 0:00:32]}  Qg6 {[%clk 0:00:01]} 43. Qf5 {[%clk 0:00:32]} 1-0


[Site "https://www.chess.com"]

[Event "Titled Tuesday Blitz March 08 Early 2022"]
[White "Safarli, Eltaj"]
[Black "Rychagov, Andrey"]
[WhiteFideId "13402129"]
[BlackFideId "4119932"]
[WhiteElo "2634"]
[BlackElo "2500"]
[Result "1-0"]
[Round "07"]
[TimeControl "180+1"]
[Date "2022.03.08"]
[WhiteClock "0:00:08"]
[BlackClock "0:00:10"]

1. e4 {[%clk 0:02:48]}  e6 {[%clk 0:02:59]} 2. d4 {[%clk 0:02:47]}  d5 {[%clk 0:02:59]} 3. e5 {[%clk 0:02:47]}  c5 {[%clk 0:02:58]} 4. c3 {[%clk 0:02:47]}  Qb6 {[%clk 0:02:58]} 5. Nf3 {[%clk 0:02:47]}  Nc6 {[%clk 0:02:59]} 6. Bd3 {[%clk 0:02:47]}  cxd4 {[%clk 0:02:57]} 7. cxd4 {[%clk 0:02:46]}  Bd7 {[%clk 0:02:57]} 8. O-O {[%clk 0:02:45]}  Nxd4 {[%clk 0:02:56]} 9. Nxd4 {[%clk 0:02:46]}  Qxd4 {[%clk 0:02:56]} 10. Nc3 {[%clk 0:02:47]}  a6 {[%clk 0:02:56]} 11. Qe2 {[%clk 0:02:46]}  Ne7 {[%clk 0:02:56]} 12. Kh1 {[%clk 0:02:45]}  Nc6 {[%clk 0:02:56]} 13. f4 {[%clk 0:02:44]}  Nb4 {[%clk 0:02:56]} 14. Rd1 {[%clk 0:02:43]}  Nxd3 {[%clk 0:02:56]} 15. Rxd3 {[%clk 0:02:44]}  Qb6 {[%clk 0:02:57]} 16. f5 {[%clk 0:02:39]}  Be7 {[%clk 0:02:41]} 17. f6 {[%clk 0:02:27]}  Bf8 {[%clk 0:02:31]} 18. fxg7 {[%clk 0:02:17]}  Bxg7 {[%clk 0:02:30]} 19. Bg5 {[%clk 0:02:17]}  Bc6 {[%clk 0:02:12]} 20. Rf1 {[%clk 0:02:12]}  Qc7 {[%clk 0:01:57]} 21. Re1 {[%clk 0:02:01]}  Kd7 {[%clk 0:01:41]} 22. Ne4 {[%clk 0:01:33]}  Qxe5 {[%clk 0:01:27]} 23. Nc5+ {[%clk 0:01:27]}  Kd6 {[%clk 0:01:27]} 24. Qd2 {[%clk 0:01:01]}  Qxb2 {[%clk 0:01:15]} 25. Qa5 {[%clk 0:00:23]}  Rhc8 {[%clk 0:00:52]} 26. Ne4+ {[%clk 0:00:19]}  Kd7 {[%clk 0:00:50]} 27. Qc5 {[%clk 0:00:18]}  Bf8 {[%clk 0:00:29]} 28. Qe3 {[%clk 0:00:18]}  Kc7 {[%clk 0:00:19]} 29. Qg3+ {[%clk 0:00:14]}  e5 {[%clk 0:00:15]} 30. Rb3 {[%clk 0:00:13]}  Qd4 {[%clk 0:00:13]} 31. Be3 {[%clk 0:00:13]}  Qxe4 {[%clk 0:00:12]} 32. Bb6+ {[%clk 0:00:13]}  Kd6 {[%clk 0:00:10]} 33. Rxe4 {[%clk 0:00:14]}  dxe4 {[%clk 0:00:11]} 34. Rb1 {[%clk 0:00:11]}  Bd5 {[%clk 0:00:10]} 35. Rd1 {[%clk 0:00:10]}  Rc6 {[%clk 0:00:10]} 36. Qb3 {[%clk 0:00:08]} 1-0


[Site "https://www.chess.com"]

[Event "Titled Tuesday Blitz March 08 Early 2022"]
[White "Samadov, Read"]
[Black "Horobetz, Graham"]
[WhiteFideId "13417444"]
[BlackFideId "2047322"]
[WhiteElo "2084"]
[BlackElo "2642"]
[Result "1-0"]
[Round "07"]
[TimeControl "180+1"]
[Date "2022.03.08"]
[WhiteClock "0:01:13"]
[BlackClock "0:00:06"]

1. d3 {[%clk 0:03:00]}  d5 {[%clk 0:02:54]} 2. Nf3 {[%clk 0:03:00]}  Nf6 {[%clk 0:02:52]} 3. g3 {[%clk 0:02:55]}  c5 {[%clk 0:02:49]} 4. Bg2 {[%clk 0:02:55]}  Nc6 {[%clk 0:02:49]} 5. O-O {[%clk 0:02:56]}  e5 {[%clk 0:02:47]} 6. e4 {[%clk 0:02:55]}  d4 {[%clk 0:02:44]} 7. a4 {[%clk 0:02:55]}  Be7 {[%clk 0:02:40]} 8. Na3 {[%clk 0:02:55]}  O-O {[%clk 0:02:32]} 9. Nc4 {[%clk 0:02:55]}  Qc7 {[%clk 0:02:30]} 10. Bd2 {[%clk 0:02:45]}  Ne8 {[%clk 0:02:27]} 11. Ne1 {[%clk 0:02:40]}  Nd6 {[%clk 0:02:26]} 12. b3 {[%clk 0:02:37]}  Be6 {[%clk 0:02:16]} 13. f4 {[%clk 0:02:36]}  f6 {[%clk 0:02:17]} 14. Nf3 {[%clk 0:02:33]}  Nxc4 {[%clk 0:02:05]} 15. bxc4 {[%clk 0:02:33]}  exf4 {[%clk 0:02:05]} 16. gxf4 {[%clk 0:02:32]}  f5 {[%clk 0:02:05]} 17. e5 {[%clk 0:02:31]}  Kh8 {[%clk 0:02:03]} 18. h4 {[%clk 0:02:31]}  h6 {[%clk 0:01:55]} 19. Kf2 {[%clk 0:02:27]}  Bf7 {[%clk 0:01:52]} 20. Rg1 {[%clk 0:02:27]}  Bh5 {[%clk 0:01:51]} 21. Qf1 {[%clk 0:02:18]}  Nd8 {[%clk 0:01:45]} 22. Bh1 {[%clk 0:02:14]}  Bxf3 {[%clk 0:01:39]} 23. Bxf3 {[%clk 0:02:10]}  Bxh4+ {[%clk 0:01:38]} 24. Ke2 {[%clk 0:02:10]}  Ne6 {[%clk 0:01:20]} 25. Qh3 {[%clk 0:02:10]}  g5 {[%clk 0:01:02]} 26. Bd5 {[%clk 0:02:00]}  Rae8 {[%clk 0:00:27]} 27. Raf1 {[%clk 0:01:57]}  Re7 {[%clk 0:00:13]} 28. fxg5 {[%clk 0:01:36]}  Qxe5+ {[%clk 0:00:06]} 29. Kd1 {[%clk 0:01:36]}  hxg5 {[%clk 0:00:06]} 30. Bxg5 {[%clk 0:01:19]}  Rh7 {[%clk 0:00:06]} 31. Bxh4 {[%clk 0:01:15]}  Nf4 {[%clk 0:00:06]} 32. Rxf4 {[%clk 0:01:13]}  Qxf4 {[%clk 0:00:06]} 33. Bf6+ {[%clk 0:01:13]} 1-0


[Site "https://www.chess.com"]

[Event "Titled Tuesday Blitz March 08 Early 2022"]
[White "Saravana, Krishnan P."]
[Black "Buscar, Michael"]
[WhiteFideId "5018382"]
[BlackFideId "2603616"]
[WhiteElo "2210"]
[BlackElo "2010"]
[Result "1-0"]
[Round "07"]
[TimeControl "180+1"]
[Date "2022.03.09"]
[WhiteClock "0:00:22"]
[BlackClock "0:00:03"]

1. c4 {[%clk 0:02:52]}  Nf6 {[%clk 0:02:57]} 2. Nc3 {[%clk 0:02:51]}  e6 {[%clk 0:02:58]} 3. e4 {[%clk 0:02:51]}  d6 {[%clk 0:02:52]} 4. d4 {[%clk 0:02:50]}  Nbd7 {[%clk 0:02:49]} 5. Nf3 {[%clk 0:02:47]}  e5 {[%clk 0:02:47]} 6. h3 {[%clk 0:02:43]}  Be7 {[%clk 0:02:40]} 7. Be2 {[%clk 0:02:41]}  c6 {[%clk 0:02:39]} 8. O-O {[%clk 0:02:40]}  O-O {[%clk 0:02:39]} 9. Be3 {[%clk 0:02:39]}  Qc7 {[%clk 0:02:38]} 10. Rc1 {[%clk 0:02:38]}  Re8 {[%clk 0:02:38]} 11. d5 {[%clk 0:02:33]}  Nf8 {[%clk 0:02:38]} 12. b4 {[%clk 0:02:27]}  a5 {[%clk 0:02:34]} 13. a3 {[%clk 0:02:23]}  Ng6 {[%clk 0:02:32]} 14. Qb3 {[%clk 0:02:22]}  Nf4 {[%clk 0:02:21]} 15. Bxf4 {[%clk 0:02:10]}  exf4 {[%clk 0:02:20]} 16. c5 {[%clk 0:01:56]}  Bf8 {[%clk 0:02:10]} 17. cxd6 {[%clk 0:01:53]}  Bxd6 {[%clk 0:02:11]} 18. Nb5 {[%clk 0:01:53]}  cxb5 {[%clk 0:01:58]} 19. Rxc7 {[%clk 0:01:50]}  Bxc7 {[%clk 0:01:58]} 20. Bxb5 {[%clk 0:01:40]}  Rxe4 {[%clk 0:01:57]} 21. Rc1 {[%clk 0:01:37]}  Bd6 {[%clk 0:01:52]} 22. Qc2 {[%clk 0:01:36]}  Bf5 {[%clk 0:01:48]} 23. Bd3 {[%clk 0:01:30]}  Rc8 {[%clk 0:01:25]} 24. Qxc8+ {[%clk 0:01:22]}  Bxc8 {[%clk 0:01:25]} 25. Bxe4 {[%clk 0:01:22]}  Bd7 {[%clk 0:01:25]} 26. Bd3 {[%clk 0:01:05]}  Nxd5 {[%clk 0:01:14]} 27. bxa5 {[%clk 0:01:03]}  Bxa3 {[%clk 0:01:08]} 28. Rd1 {[%clk 0:01:02]}  Nc3 {[%clk 0:00:54]} 29. Bxh7+ {[%clk 0:01:01]}  Kxh7 {[%clk 0:00:51]} 30. Rxd7 {[%clk 0:01:01]}  Bb4 {[%clk 0:00:50]} 31. Rxf7 {[%clk 0:00:57]}  Bxa5 {[%clk 0:00:49]} 32. Rxb7 {[%clk 0:00:57]}  Bd8 {[%clk 0:00:43]} 33. Kf1 {[%clk 0:00:52]}  Bf6 {[%clk 0:00:43]} 34. Ke1 {[%clk 0:00:51]}  Kg6 {[%clk 0:00:41]} 35. Rc7 {[%clk 0:00:45]}  Kf5 {[%clk 0:00:39]} 36. Rc4 {[%clk 0:00:41]}  Nd5 {[%clk 0:00:23]} 37. Ke2 {[%clk 0:00:40]}  Ke6 {[%clk 0:00:18]} 38. g3 {[%clk 0:00:37]}  fxg3 {[%clk 0:00:17]} 39. fxg3 {[%clk 0:00:37]}  Kf7 {[%clk 0:00:17]} 40. h4 {[%clk 0:00:36]}  Kg6 {[%clk 0:00:16]} 41. g4 {[%clk 0:00:35]}  Be7 {[%clk 0:00:13]} 42. Kd3 {[%clk 0:00:32]}  Kf7 {[%clk 0:00:12]} 43. g5 {[%clk 0:00:31]}  Nb6 {[%clk 0:00:11]} 44. Rf4+ {[%clk 0:00:29]}  Ke6 {[%clk 0:00:09]} 45. Nd4+ {[%clk 0:00:28]}  Kd7 {[%clk 0:00:08]} 46. Rf7 {[%clk 0:00:26]}  Nd5 {[%clk 0:00:04]} 47. Rxg7 {[%clk 0:00:25]}  Ke8 {[%clk 0:00:04]} 48. Ke4 {[%clk 0:00:23]}  Kf8 {[%clk 0:00:03]} 49. Ne6+ {[%clk 0:00:22]} 1-0


[Site "https://www.chess.com"]

[Event "Titled Tuesday Blitz March 08 Early 2022"]
[White "Seo, Jung Min"]
[Black "Domingo Nunez, Alejandro"]
[WhiteFideId "1734687"]
[BlackFideId "22245561"]
[WhiteElo "2401"]
[BlackElo "2215"]
[Result "0-1"]
[Round "07"]
[TimeControl "180+1"]
[Date "2022.03.09"]
[WhiteClock "0:00:49"]
[BlackClock "0:00:47"]

1. e4 {[%clk 0:03:00]}  g6 {[%clk 0:02:58]} 2. d4 {[%clk 0:03:00]}  Bg7 {[%clk 0:02:59]} 3. Nc3 {[%clk 0:02:58]}  c6 {[%clk 0:02:59]} 4. h3 {[%clk 0:02:54]}  d5 {[%clk 0:02:59]} 5. e5 {[%clk 0:02:54]}  f6 {[%clk 0:03:00]} 6. f4 {[%clk 0:02:54]}  fxe5 {[%clk 0:03:00]} 7. fxe5 {[%clk 0:02:53]}  Nh6 {[%clk 0:03:01]} 8. Nf3 {[%clk 0:02:51]}  O-O {[%clk 0:03:01]} 9. Be2 {[%clk 0:02:48]}  Nf5 {[%clk 0:03:01]} 10. Bf4 {[%clk 0:02:48]}  Nh4 {[%clk 0:02:53]} 11. Nxh4 {[%clk 0:02:47]}  Rxf4 {[%clk 0:02:53]} 12. Nf3 {[%clk 0:02:47]}  Qb6 {[%clk 0:02:31]} 13. Qd2 {[%clk 0:02:30]}  Bh6 {[%clk 0:02:19]} 14. O-O-O {[%clk 0:02:27]}  Kg7 {[%clk 0:02:10]} 15. Na4 {[%clk 0:01:41]}  Qc7 {[%clk 0:01:59]} 16. Ng5 {[%clk 0:01:15]}  Bxg5 {[%clk 0:01:57]} 17. Kb1 {[%clk 0:01:15]}  Bh6 {[%clk 0:01:44]} 18. Nc5 {[%clk 0:01:12]}  b6 {[%clk 0:01:35]} 19. Nb3 {[%clk 0:01:12]}  a5 {[%clk 0:01:28]} 20. g3 {[%clk 0:01:12]}  Rf8 {[%clk 0:01:23]} 21. Qe1 {[%clk 0:01:11]}  a4 {[%clk 0:01:23]} 22. Nc1 {[%clk 0:01:11]}  Bf5 {[%clk 0:01:22]} 23. Bd3 {[%clk 0:01:09]}  a3 {[%clk 0:01:20]} 24. b3 {[%clk 0:01:07]}  Bxc1 {[%clk 0:01:11]} 25. Rxc1 {[%clk 0:01:06]}  Bxd3 {[%clk 0:01:11]} 26. cxd3 {[%clk 0:01:06]}  e6 {[%clk 0:01:08]} 27. h4 {[%clk 0:01:06]}  Qf7 {[%clk 0:00:57]} 28. Qb4 {[%clk 0:00:51]}  Qf3 {[%clk 0:00:47]} 29. Rhd1 {[%clk 0:00:50]}  Nd7 {[%clk 0:00:46]} 30. Qe7+ {[%clk 0:00:48]}  Rf7 {[%clk 0:00:46]} 31. Qxe6 {[%clk 0:00:49]}  Qe2 {[%clk 0:00:47]} 0-1


[Site "https://www.chess.com"]

[Event "Titled Tuesday Blitz March 08 Early 2022"]
[White "Shkapenko, Pavel"]
[Black "Skliarov, Viktor"]
[WhiteFideId "4151933"]
[BlackFideId "14106736"]
[WhiteElo "2386"]
[BlackElo "2229"]
[Result "1-0"]
[Round "07"]
[TimeControl "180+1"]
[Date "2022.03.09"]
[WhiteClock "0:00:29"]
[BlackClock "0:00:28"]

1. e4 {[%clk 0:02:25]}  c5 {[%clk 0:02:59]} 2. c3 {[%clk 0:02:25]}  d6 {[%clk 0:02:59]} 3. d4 {[%clk 0:02:24]}  Nf6 {[%clk 0:02:59]} 4. Bd3 {[%clk 0:02:24]}  g6 {[%clk 0:03:00]} 5. dxc5 {[%clk 0:02:24]}  dxc5 {[%clk 0:03:00]} 6. e5 {[%clk 0:02:24]}  Nh5 {[%clk 0:03:00]} 7. h3 {[%clk 0:02:05]}  Nc6 {[%clk 0:02:58]} 8. Nf3 {[%clk 0:02:02]}  Bf5 {[%clk 0:02:58]} 9. Bxf5 {[%clk 0:01:49]}  Qxd1+ {[%clk 0:02:57]} 10. Kxd1 {[%clk 0:01:50]}  gxf5 {[%clk 0:02:58]} 11. g4 {[%clk 0:01:51]}  Ng7 {[%clk 0:02:38]} 12. Kc2 {[%clk 0:01:48]}  fxg4 {[%clk 0:02:33]} 13. hxg4 {[%clk 0:01:47]}  Ne6 {[%clk 0:02:34]} 14. Be3 {[%clk 0:01:45]}  Bg7 {[%clk 0:02:29]} 15. Rh5 {[%clk 0:01:44]}  O-O-O {[%clk 0:02:22]} 16. Nbd2 {[%clk 0:01:42]}  Rd5 {[%clk 0:02:22]} 17. Rah1 {[%clk 0:01:35]}  b5 {[%clk 0:02:08]} 18. Rxh7 {[%clk 0:01:33]}  Rxh7 {[%clk 0:02:07]} 19. Rxh7 {[%clk 0:01:34]}  Nxe5 {[%clk 0:02:06]} 20. Nxe5 {[%clk 0:01:33]}  Rxe5 {[%clk 0:02:06]} 21. Nf3 {[%clk 0:01:19]}  Re4 {[%clk 0:02:00]} 22. Ng5 {[%clk 0:01:11]}  Rxg4 {[%clk 0:01:49]} 23. Nxe6 {[%clk 0:01:04]}  fxe6 {[%clk 0:01:47]} 24. Bxc5 {[%clk 0:01:04]}  a6 {[%clk 0:01:40]} 25. Bxe7 {[%clk 0:01:02]}  Be5 {[%clk 0:01:35]} 26. Bc5 {[%clk 0:01:00]}  Rg7 {[%clk 0:01:12]} 27. Rxg7 {[%clk 0:00:57]}  Bxg7 {[%clk 0:01:12]} 28. Kd3 {[%clk 0:00:58]}  Kd7 {[%clk 0:01:12]} 29. Bd4 {[%clk 0:00:53]}  Bh6 {[%clk 0:01:11]} 30. c4 {[%clk 0:00:50]}  bxc4+ {[%clk 0:01:03]} 31. Kxc4 {[%clk 0:00:50]}  Kc6 {[%clk 0:01:04]} 32. Be5 {[%clk 0:00:49]}  Bd2 {[%clk 0:01:01]} 33. Bc3 {[%clk 0:00:45]}  Bg5 {[%clk 0:00:59]} 34. Kd4 {[%clk 0:00:44]}  Bh4 {[%clk 0:00:52]} 35. f3 {[%clk 0:00:43]}  Bg3 {[%clk 0:00:50]} 36. b3 {[%clk 0:00:39]}  Bd6 {[%clk 0:00:48]} 37. Ke4 {[%clk 0:00:37]}  Bc7 {[%clk 0:00:45]} 38. Be5 {[%clk 0:00:37]}  Bd8 {[%clk 0:00:45]} 39. Kd4 {[%clk 0:00:35]}  Bb6+ {[%clk 0:00:45]} 40. Kc4 {[%clk 0:00:35]}  Bd8 {[%clk 0:00:45]} 41. b4 {[%clk 0:00:35]}  Bb6 {[%clk 0:00:45]} 42. a4 {[%clk 0:00:34]}  Bd8 {[%clk 0:00:45]} 43. b5+ {[%clk 0:00:32]}  axb5+ {[%clk 0:00:46]} 44. axb5+ {[%clk 0:00:33]}  Kd7 {[%clk 0:00:41]} 45. Kc5 {[%clk 0:00:31]}  Bh4 {[%clk 0:00:29]} 46. b6 {[%clk 0:00:29]}  Bf2+ {[%clk 0:00:28]} 47. Kb5 {[%clk 0:00:29]} 1-0


[Site "https://www.chess.com"]